fUSD/lending_fUSD_20251228
["ID","MTS","AMOUNT","RATE_DAILY","PERIOD"]
[399961452,1766946144755,425.49525816,0.00030136,120]
[399961492,1766946159226,479.19090178,0.00030136,120]
[399961502,1766946160514,222.68249,0.00013374,2]
[399961514,1766946162877,1569.0,0.0003013,120]
[399961517,1766946163655,739.0,0.0003013,120]
[399961518,1766946164568,1224.0,0.0003013,120]
[399961520,1766946165079,500.0,0.00030136,120]
[399961522,1766946165313,500.0,0.00030136,120]
[399961523,1766946165561,500.0,0.00030136,120]
[399961525,1766946165792,500.0,0.00030136,120]
[399961526,1766946166188,500.0,0.00030136,120]
[399961527,1766946166271,500.0,0.00030136,120]
[399961528,1766946166515,500.0,0.00030136,120]
[399961529,1766946166781,500.0,0.00030136,120]
[399961530,1766946167027,500.0,0.00030136,120]
[399961531,1766946167279,500.0,0.00030136,120]
[399961532,1766946167439,233.27898877,0.00030136,120]
[399961533,1766946167514,500.0,0.00030136,120]
[399961535,1766946167761,500.0,0.00030136,120]
[399961536,1766946167998,500.0,0.00030136,120]
[399961537,1766946168229,500.0,0.00030136,120]
[399961538,1766946168591,500.0,0.00030136,120]
[399961540,1766946168832,500.0,0.00030136,120]
[399961542,1766946169088,500.0,0.00030136,120]
[399961543,1766946169319,500.0,0.00030136,120]
[399961545,1766946169572,500.0,0.00030136,120]
[399961546,1766946169809,500.0,0.00030136,120]
[399961547,1766946170045,329.91306213,0.00030136,120]
[399961549,1766946171056,500.0,0.00030136,120]
[399961550,1766946171299,500.0,0.00030136,120]
[399961551,1766946171536,500.0,0.00030136,120]
[399961552,1766946171786,500.0,0.00030136,120]
[399961553,1766946172036,425.84157505,0.00030136,120]
[399961554,1766946173782,500.0,0.00030136,120]
[399961555,1766946174265,500.0,0.00030136,120]
[399961556,1766946174314,409.71600111,0.00030136,120]
[399961557,1766946174365,500.0,0.00030136,120]
[399961558,1766946174508,612.76574494,0.00030136,120]
[399961566,1766946176545,561.54652114,0.00030136,120]
[399961589,1766946183461,500.0,0.00030136,120]
[399961591,1766946183843,176.20663336,0.00030136,120]
[399961592,1766946183879,432.59324071,0.00030136,120]
[399961598,1766946187361,293.0236288,0.00030136,120]
[399961599,1766946188914,434.85873522,0.00030136,120]
[399961600,1766946189962,500.0,0.00030136,120]
[399961601,1766946190212,580.74179777,0.00030136,120]
[399961602,1766946192721,444.0727,0.00030136,120]
[399961603,1766946192759,407.10426803,0.00030136,120]
[399961608,1766946196976,375.98718825,0.00030136,120]
[399961609,1766946199258,348.10226786,0.00030136,120]
[399961610,1766946208817,458.12573719,0.00030136,120]
[399961611,1766946212248,461.12655603,0.00030136,120]
[399961612,1766946212580,279.75314357,0.00030136,120]
[399961613,1766946214674,223.84672603,0.00030136,120]
[399961614,1766946223206,3930.17,0.00013033,2]
[399961615,1766946224205,874.0,0.0003013,120]
[399961616,1766946225008,1040.0,0.0003013,120]
[399961617,1766946233610,330.84332013,0.00030136,120]
[399961618,1766946245818,423.77711375,0.00030136,120]
[399961619,1766946247815,603.5100547,0.00030136,120]
[399961620,1766946250095,317.38928704,0.00030136,120]
[399961621,1766946251870,418.24147369,0.00030136,120]
[399961622,1766946252359,429.21036412,0.00030136,120]
[399961623,1766946262239,207.79101921,0.00030136,120]
[399961624,1766946267416,1000.0,0.00030137,120]
[399961625,1766946273932,400.0,0.00030136,120]
[399961626,1766946283805,478.91745958,0.0003013,120]
[399961627,1766946296228,402.98203963,0.00030136,120]
[399961628,1766946298057,425.0163649,0.00030136,120]
[399961629,1766946299799,324.69202163,0.00030136,120]
[399961630,1766946301582,402.31259677,0.00030136,120]
[399961631,1766946303932,406.94615046,0.00030136,120]
[399961632,1766946306973,410.61523847,0.00030136,120]
[399961633,1766946308846,412.24108179,0.00030136,120]
[399961634,1766946310654,400.0,0.00030136,120]
[399961635,1766946312431,500.0,0.00030136,120]
[399961636,1766946312695,503.33007785,0.00030136,120]
[399961637,1766946314706,500.0,0.00030136,120]
[399961638,1766946315022,462.75756819,0.00030136,120]
[399961639,1766946317132,442.7347619,0.00030136,120]
[399961640,1766946322993,425.95253781,0.00030136,120]
[399961641,1766946324912,413.13240698,0.00030136,120]
[399961642,1766946332429,163.35401625,0.0002,120]
[399961643,1766946334187,500.0,0.00030136,120]
[399961644,1766946334441,213.56087598,0.00030136,120]
[399961653,1766946336779,158.13800165,0.00030136,120]
[399961654,1766946339969,413.57118374,0.00030136,120]
[399961655,1766946340327,596.71284081,0.00030136,120]
[399961656,1766946342732,500.0,0.00030136,120]
[399961657,1766946343010,500.0,0.00030136,120]
[399961658,1766946343238,500.0,0.00030136,120]
[399961659,1766946343474,260.74529034,0.00030136,120]
[399961660,1766946345106,167.58511094,0.00030136,120]
[399961661,1766946350624,400.0,0.00030136,120]
[399961662,1766946352519,338.19041475,0.00030136,120]
[399961663,1766946353810,252.24462599,0.00030136,120]
[399961665,1766946366519,533.55750468,0.00030136,120]
[399961666,1766946367222,168.73684322,0.00030136,120]
[399961670,1766946370932,500.0,0.00030136,120]
[399961671,1766946371164,500.0,0.00030136,120]
[399961672,1766946371404,500.0,0.00030136,120]
[399961673,1766946371633,500.0,0.00030136,120]
[399961674,1766946371864,500.0,0.00030136,120]
[399961675,1766946372099,500.0,0.00030136,120]
[399961676,1766946372354,500.0,0.00030136,120]
[399961677,1766946372608,500.0,0.00030136,120]
[399961678,1766946372841,500.0,0.00030136,120]
[399961679,1766946373074,500.0,0.00030136,120]
[399961680,1766946373332,352.93755205,0.00030136,120]
[399961681,1766946373824,436.97,0.00030136,120]
[399961682,1766946375160,402.98381529,0.00030136,120]
[399961683,1766946376072,500.0,0.00030136,120]
[399961684,1766946376302,317.05353746,0.00030136,120]
[399961685,1766946377031,408.47619843,0.00030136,120]
[399961688,1766946382086,500.0,0.00030136,120]
[399961689,1766946382311,500.0,0.00030136,120]
[399961690,1766946382832,500.0,0.00030136,120]
[399961691,1766946382872,500.0,0.00030136,120]
[399961692,1766946383075,500.0,0.00030136,120]
[399961694,1766946383459,500.0,0.00030136,120]
[399961695,1766946383704,500.0,0.00030136,120]
[399961696,1766946383973,500.0,0.00030136,120]
[399961697,1766946384214,500.0,0.00030136,120]
[399961698,1766946384474,500.0,0.00030136,120]
[399961699,1766946384704,500.0,0.00030136,120]
[399961701,1766946385099,500.0,0.00030136,120]
[399961702,1766946385186,500.0,0.00030136,120]
[399961703,1766946385539,500.0,0.00030136,120]
[399961704,1766946385769,500.0,0.00030136,120]
[399961705,1766946386030,500.0,0.00030136,120]
[399961706,1766946386260,257.85192872,0.00030136,120]
[399961712,1766946401246,452.7965204,0.00030136,120]
[399961713,1766946407665,416.26693883,0.00030136,120]
[399961714,1766946422291,500.0,0.00030136,120]
[399961715,1766946422527,500.0,0.00030136,120]
[399961716,1766946422757,500.0,0.00030136,120]
[399961717,1766946423003,248.5653322,0.00030136,120]
[399961718,1766946425697,627.76497228,0.000226,120]
[399961719,1766946436841,500.0,0.00030136,120]
[399961720,1766946437210,500.0,0.00030136,120]
[399961721,1766946437308,592.31959164,0.00030136,120]
[399961722,1766946439981,439.71091727,0.00030136,120]
[399961723,1766946446207,500.0,0.00030136,120]
[399961724,1766946446818,500.8,0.00030136,120]
[399961741,1766946461130,295.95730883,0.00030136,120]
[399961742,1766946464043,480.31620084,0.00030136,120]
[399961743,1766946471884,373.06930654,0.00030136,120]
[399961744,1766946472173,255.32723466,0.00030136,120]
[399961745,1766946476258,416.84713527,0.00030136,120]
[399961746,1766946478098,547.97434733,0.00030136,120]
[399961747,1766946479966,638.16482464,0.00030136,120]
[399961748,1766946480932,455.16413872,0.00030136,120]
[399961749,1766946482524,414.35735577,0.00030136,120]
[399961750,1766946484457,411.688572,0.00030136,120]
[399961751,1766946486862,403.5377265,0.00030136,120]
[399961752,1766946500601,638.76582952,0.00030136,120]
[399961753,1766946506063,500.0,0.00030136,120]
[399961754,1766946506291,500.0,0.00030136,120]
[399961755,1766946506537,500.0,0.00030136,120]
[399961756,1766946506772,500.0,0.00030136,120]
[399961757,1766946507005,500.0,0.00030136,120]
[399961758,1766946507230,639.16546703,0.00030136,120]
[399961767,1766946525298,183.34193787,0.0003,120]
[399961768,1766946525331,1093.14,0.00012981,2]
[399961769,1766946530083,999.0,0.00012982,3]
[399961770,1766946533765,191.75461517,0.00030136,120]
[399961771,1766946552899,166.66,0.00012347,2]
[399961772,1766946553318,166.66,0.00012607,2]
[399961773,1766946553523,166.66,0.00012867,2]
[399961774,1766946553736,166.66,0.00013126,2]
[399961775,1766946553937,166.66,0.00013386,2]
[399961776,1766946562152,-300.0,0.00013449,2]
[399961777,1766946562176,-250.0,0.00013456,2]
[399961778,1766946562196,-214.28,0.0001347,2]
[399961779,1766946562218,-300.0,0.0001351,2]
[399961780,1766946562239,-300.0,0.0001351,2]
[399961781,1766946562259,-261.0,0.00013542,2]
[399961782,1766946562281,-166.66,0.00013646,2]
[399961783,1766946562587,-528.96296042,0.00013715,2]
[399961784,1766946562608,-151.0,0.00013717,2]
[399961785,1766946562631,-178.97322544,0.00013718,2]
[399961786,1766946562650,-509.03802287,0.00013719,2]
[399961787,1766946562675,-500.0,0.00013719,2]
[399961788,1766946562696,-480.0,0.00013719,2]
[399961789,1766946562717,-156.45007209,0.00013719,2]
[399961790,1766946562742,-229.64476911,0.00013719,2]
[399961791,1766946562764,-334.34461592,0.00013719,2]
[399961792,1766946562787,-500.0,0.00013719,2]
[399961793,1766946562812,-500.0,0.00013719,2]
[399961794,1766946562835,-500.0,0.00013719,2]
[399961795,1766946562858,-500.0,0.00013719,2]
[399961796,1766946562881,-500.0,0.00013719,2]
[399961797,1766946562902,-500.0,0.00013719,2]
[399961798,1766946562927,-500.0,0.00013719,2]
[399961799,1766946562954,-500.0,0.00013719,2]
[399961800,1766946562976,-500.0,0.00013719,2]
[399961801,1766946563001,-500.0,0.00013719,2]
[399961802,1766946563028,-139.64633415,0.00013719,2]
[399961803,1766946563499,-360.35366585,0.00013719,2]
[399961804,1766946563523,-500.0,0.00013719,2]
[399961805,1766946563546,-500.0,0.00013719,2]
[399961806,1766946563568,-500.0,0.00013719,2]
[399961807,1766946563590,-500.0,0.00013719,2]
[399961808,1766946563621,-500.0,0.00013719,2]
[399961809,1766946563648,-500.0,0.00013719,2]
[399961810,1766946563675,-500.0,0.00013719,2]
[399961811,1766946563698,-500.0,0.00013719,2]
[399961812,1766946563721,-500.0,0.00013719,2]
[399961813,1766946563743,-500.0,0.00013719,2]
[399961814,1766946563765,-303.10649089,0.00013719,2]
[399961815,1766946563787,-500.0,0.00013719,2]
[399961816,1766946563809,-500.0,0.00013719,2]
[399961817,1766946563831,-500.0,0.00013719,2]
[399961818,1766946563855,-500.0,0.00013719,2]
[399961819,1766946563878,-500.0,0.00013719,2]
[399961820,1766946563901,-500.0,0.00013719,2]
[399961821,1766946563924,-500.0,0.00013719,2]
[399961822,1766946563947,-500.0,0.00013719,2]
[399961823,1766946563969,-336.53984326,0.00013719,2]
[399961824,1766946563997,-163.46015674,0.00013719,2]
[399961825,1766946564020,-500.0,0.00013719,2]
[399961826,1766946564043,-585.34820827,0.00013719,2]
[399961827,1766946564071,-500.0,0.00013719,2]
[399961828,1766946564095,-500.0,0.00013719,2]
[399961829,1766946564119,-500.0,0.00013719,2]
[399961830,1766946564143,-500.0,0.00013719,2]
[399961831,1766946564169,-500.0,0.00013719,2]
[399961832,1766946564193,-500.0,0.00013719,2]
[399961833,1766946564220,-500.0,0.00013719,2]
[399961834,1766946564250,-500.0,0.00013719,2]
[399961835,1766946564275,-500.0,0.00013719,2]
[399961836,1766946564303,-500.0,0.00013719,2]
[399961837,1766946564327,-500.0,0.00013719,2]
[399961838,1766946564349,-500.0,0.00013719,2]
[399961839,1766946564372,-500.0,0.00013719,2]
[399961840,1766946564395,-500.0,0.00013719,2]
[399961841,1766946564417,-500.0,0.00013719,2]
[399961842,1766946564438,-500.0,0.00013719,2]
[399961843,1766946564461,-500.0,0.00013719,2]
[399961844,1766946564483,-251.19163499,0.00013719,2]
[399961845,1766946564552,-248.80836501,0.00013719,2]
[399961846,1766946564575,-500.0,0.00013719,2]
[399961847,1766946564596,-500.0,0.00013719,2]
[399961848,1766946564618,-500.0,0.00013719,2]
[399961849,1766946564642,-500.0,0.00013719,2]
[399961850,1766946564664,-500.0,0.00013719,2]
[399961851,1766946564691,-500.0,0.00013719,2]
[399961852,1766946564715,-500.0,0.00013719,2]
[399961853,1766946564737,-500.0,0.00013719,2]
[399961854,1766946564760,-500.0,0.00013719,2]
[399961855,1766946564786,-500.0,0.00013719,2]
[399961856,1766946564809,-500.0,0.00013719,2]
[399961857,1766946564833,-500.0,0.00013719,2]
[399961858,1766946564856,-500.0,0.00013719,2]
[399961859,1766946564879,-500.0,0.00013719,2]
[399961860,1766946564903,-500.0,0.00013719,2]
[399961861,1766946564926,-500.0,0.00013719,2]
[399961862,1766946564949,-500.0,0.00013719,2]
[399961863,1766946564973,-1251.19163499,0.0001372,2]
[399961864,1766946565038,-10000.0,0.0001372,2]
[399961865,1766946565805,-10000.0,0.0001372,2]
[399961866,1766946569773,-10000.0,0.0001372,2]
[399961867,1766946570409,-10000.0,0.0001372,2]
[399961868,1766946571161,-10000.0,0.0001372,2]
[399961869,1766946571503,-10000.0,0.0001372,2]
[399961870,1766946571935,-10000.0,0.0001372,2]
[399961871,1766946573429,-10000.0,0.0001372,2]
[399961872,1766946573479,-10000.0,0.0001372,2]
[399961873,1766946574732,-10000.0,0.0001372,2]
[399961874,1766946575435,-10000.0,0.0001372,2]
[399961875,1766946576570,-10000.0,0.0001372,2]
[399961876,1766946577905,-10000.0,0.0001372,2]
[399961877,1766946596308,-6541.0,0.00013718,2]
[399961878,1766946609111,1600.0,0.0001326,2]
[399961884,1766946629587,245.10186267,0.00030136,120]
[399961891,1766946631865,-300.0,0.00013717,2]
[399961894,1766946631875,-331.14933461,0.00013717,2]
[399961897,1766946631920,-868.85066539,0.00013717,2]
[399961898,1766946631930,-300.0,0.00013717,2]
[399961899,1766946631940,-293.25604003,0.00013718,2]
[399961900,1766946631950,-12.33706535,0.00013718,2]
[399961901,1766946631977,-271.00000022,0.00013718,2]
[399961902,1766946631988,-10450.86427054,0.00013718,2]
[399961903,1766946631997,-150.0,0.00013719,2]
[399961904,1766946632007,-580.24678196,0.00013719,2]
[399961905,1766946632016,-1316.0389403,0.00013719,2]
[399961906,1766946632026,-103398.10785325,0.0001372,2]
[399961907,1766946632038,-31024.16720319,0.0001372,2]
[399961908,1766946632050,-2204.42030992,0.0001372,2]
[399961924,1766946637974,-186663.72957322,0.0001372,2]
[399961925,1766946637985,-1629.86213628,0.0001372,2]
[399961926,1766946637995,-559.68399054,0.0001372,2]
[399961927,1766946638026,-935.58169634,0.0001372,2]
[399961928,1766946638084,-871.643,0.0001372,2]
[399961929,1766946638096,-393.69097478,0.0001372,2]
[399961941,1766946638622,410.61247741,0.00030136,120]
[399961954,1766946641062,-438.765,0.0001372,2]
[399961955,1766946641073,-252.254964,0.0001372,2]
[399961956,1766946641085,-540376.90166349,0.0001372,2]
[399961957,1766946641094,-2057.779,0.00013819,2]
[399961958,1766946641103,-181.608,0.00013819,2]
[399961959,1766946641113,-2500.0,0.00013821,2]
[399961960,1766946641122,-165.82884531,0.00013821,2]
[399961961,1766946641132,-9456.11098514,0.00013821,2]
[399961962,1766946641142,-342.81583747,0.00013821,2]
[399961963,1766946641151,-215.0738,0.00013912,2]
[399961964,1766946641160,-200.0,0.00013912,2]
[399961965,1766946641169,-200.0,0.00013912,2]
[399961966,1766946641178,-500.0,0.00013912,2]
[399961967,1766946641187,-953.87,0.00013919,2]
[399961968,1766946641197,-546.9592126,0.0001392,2]
[399961969,1766946641206,-500.0,0.0001392,2]
[399961970,1766946641216,-500.0,0.0001392,2]
[399961971,1766946641226,-500.0,0.0001392,2]
[399961972,1766946641235,-500.0,0.0001392,2]
[399961973,1766946641244,-55965.51819688,0.0001392,2]
[399961974,1766946641254,-500.0,0.0001392,2]
[399961975,1766946641265,-500.0,0.0001392,2]
[399961976,1766946641274,-500.0,0.0001392,2]
[399961977,1766946641283,-500.0,0.0001392,2]
[399961978,1766946641292,-190.55361039,0.0001392,2]
[399961979,1766946641302,-500.0,0.0001392,2]
[399961980,1766946641311,-500.0,0.0001392,2]
[399961981,1766946641320,-500.0,0.0001392,2]
[399961982,1766946641330,-500.0,0.0001392,2]
[399961983,1766946641340,-1000.0,0.00013921,2]
[399961984,1766946641349,-29918.8137,0.00013921,2]
[399961985,1766946641359,-150.0,0.00013926,2]
[399961986,1766946641368,-154.80154307,0.00013926,2]
[399961987,1766946641378,-150.0,0.00013926,2]
[399961988,1766946641388,-1215.0,0.00013926,2]
[399961989,1766946641398,-150.0,0.00013926,2]
[399961990,1766946641407,-150.0,0.00013953,2]
[399961991,1766946641417,-150.0,0.00013953,2]
[399961992,1766946641427,-1215.0,0.00013953,2]
[399961993,1766946641437,-150.0,0.00013953,2]
[399961994,1766946641447,-250.0,0.00013981,2]
[399961995,1766946641456,-201.65928417,0.00013981,2]
[399961996,1766946641466,-1215.0,0.00013981,2]
[399961997,1766946641476,-150.0,0.00013981,2]
[399961998,1766946641485,-86698.05149072,0.0001399,2]
[399961999,1766946641495,-1215.0,0.00014008,2]
[399962000,1766946641509,-150.0,0.00014008,2]
[399962001,1766946641522,-195.54717431,0.00014008,2]
[399962002,1766946641532,-1215.0,0.00014036,2]
[399962003,1766946641542,-211.20663021,0.00014036,2]
[399962004,1766946641552,-1215.0,0.00014063,2]
[399962005,1766946641561,-17275.20133603,0.00014072,2]
[399962006,1766946641570,-1215.0,0.0001409,2]
[399962007,1766946641580,-1215.0,0.00014118,2]
[399962008,1766946641589,-1215.0,0.00014145,2]
[399962009,1766946641599,-9456.11098514,0.00014163,2]
[399962010,1766946641608,-1215.0,0.00014173,2]
[399962011,1766946641618,-953.87,0.00014193,2]
[399962012,1766946641627,-1215.0,0.000142,2]
[399962013,1766946641636,-1215.0,0.00014227,2]
[399962014,1766946641646,-1215.0,0.00014255,2]
[399962015,1766946641655,-342.81583742,0.00014261,2]
[399962016,1766946641665,-1215.0,0.00014282,2]
[399962017,1766946641674,-1215.0,0.0001431,2]
[399962018,1766946641683,-1215.0,0.00014337,2]
[399962019,1766946641693,-1215.0,0.00014364,2]
[399962020,1766946641703,-1215.0,0.00014392,2]
[399962021,1766946641716,-1215.0,0.00014419,2]
[399962022,1766946641726,-17275.20133603,0.00014425,2]
[399962023,1766946641735,-232.09,0.00014444,2]
[399962024,1766946641744,-1215.0,0.00014447,2]
[399962025,1766946641754,-200.0,0.0001446,2]
[399962026,1766946641763,-201.23401647,0.0001446,2]
[399962027,1766946641772,-504.00666552,0.0001446,2]
[399962028,1766946641782,-953.87,0.00014467,2]
[399962029,1766946641792,-7406.89,0.00014467,2]
[399962030,1766946641801,-1215.0,0.00014474,2]
[399962031,1766946641810,-1215.0,0.00014501,2]
[399962032,1766946641820,-9456.11098514,0.00014505,2]
[399962033,1766946641829,-1215.0,0.00014529,2]
[399962034,1766946641839,-1230.23800588,0.00014556,2]
[399962035,1766946641849,-224.28186878,0.00014573,2]
[399962036,1766946641858,-500.0,0.00014573,2]
[399962037,1766946641868,-500.0,0.00014573,2]
[399962038,1766946641877,-500.85459949,0.00014573,2]
[399962039,1766946641887,-500.0,0.00014573,2]
[399962040,1766946641897,-500.0,0.00014573,2]
[399962041,1766946641907,-500.0,0.00014573,2]
[399962042,1766946641916,-254.67001786,0.00014573,2]
[399962043,1766946641925,-500.0,0.00014573,2]
[399962044,1766946641935,-165.96450787,0.00014573,2]
[399962045,1766946641944,-500.0,0.00014573,2]
[399962046,1766946641953,-500.0,0.00014573,2]
[399962047,1766946641963,-500.0,0.00014573,2]
[399962048,1766946641972,-235.96212979,0.00014573,2]
[399962049,1766946641982,-500.0,0.00014575,2]
[399962050,1766946641991,-165.82884527,0.00014591,2]
[399962051,1766946642000,-178.97322543,0.00014598,2]
[399962052,1766946642010,-342.81583742,0.00014701,2]
[399962053,1766946642020,-953.87,0.00014741,2]
[399962054,1766946642029,-17275.20133603,0.00014779,2]
[399962055,1766946642039,-198.31759794,0.00014786,2]
[399962056,1766946642049,-300.0,0.00014786,2]
[399962057,1766946642058,-195.0,0.00014786,2]
[399962058,1766946642068,-195.0,0.00014794,2]
[399962059,1766946642077,-369.47167072,0.00014794,2]
[399962060,1766946642087,-154.3,0.00014799,2]
[399962061,1766946642097,-255.0,0.0001483,2]
[399962062,1766946642106,-9456.11098514,0.00014847,2]
[399962063,1766946642115,-1600.0,0.00014917,2]
[399962064,1766946642125,-953.87,0.00015015,2]
[399962065,1766946642135,-420.0,0.00015032,2]
[399962066,1766946642144,-212.82,0.00015068,2]
[399962067,1766946642154,-250.0,0.00015089,2]
[399962068,1766946642163,-1680.0,0.00015089,2]
[399962069,1766946642173,-1000.0,0.00015121,2]
[399962070,1766946642182,-1000.0,0.00015121,2]
[399962071,1766946642192,-1000.0,0.00015121,2]
[399962072,1766946642202,-1000.0,0.00015121,2]
[399962073,1766946642212,-1000.0,0.00015121,2]
[399962074,1766946642221,-712.239044,0.00015121,2]
[399962075,1766946642231,-1000.0,0.00015121,2]
[399962076,1766946642241,-1000.0,0.00015121,2]
[399962077,1766946642251,-17275.20133603,0.00015132,2]
[399962078,1766946642261,-342.81583742,0.00015141,2]
[399962079,1766946642271,-9456.11098514,0.00015189,2]
[399962080,1766946642280,-150.0,0.00015288,2]
[399962081,1766946642290,-150.0,0.00015288,2]
[399962082,1766946642299,-150.0,0.00015288,2]
[399962083,1766946642308,-150.0,0.00015288,2]
[399962084,1766946642317,-298.69511274,0.00015288,2]
[399962085,1766946642326,-150.0,0.00015288,2]
[399962086,1766946642336,-150.0,0.00015288,2]
[399962087,1766946642345,-150.0,0.00015288,2]
[399962088,1766946642354,-150.0,0.00015288,2]
[399962089,1766946642364,-150.0,0.00015288,2]
[399962090,1766946642374,-150.0,0.00015288,2]
[399962091,1766946642383,-150.0,0.00015288,2]
[399962092,1766946642393,-150.0,0.00015288,2]
[399962093,1766946642403,-150.0,0.00015288,2]
[399962094,1766946642412,-953.87,0.00015289,2]
[399962095,1766946642422,-150.0,0.00015307,2]
[399962096,1766946642432,-150.0,0.00015312,2]
[399962097,1766946642441,-150.0,0.00015314,2]
[399962098,1766946642450,-150.0,0.00015324,2]
[399962099,1766946642460,-150.0,0.00015326,2]
[399962100,1766946642469,-150.0,0.00015327,2]
[399962101,1766946642479,-150.0,0.00015332,2]
[399962102,1766946642488,-150.0,0.00015336,2]
[399962103,1766946642497,-150.0,0.00015341,2]
[399962104,1766946642506,-150.0,0.00015344,2]
[399962105,1766946642515,-150.0,0.00015346,2]
[399962106,1766946642525,-150.0,0.0001536,2]
[399962107,1766946642534,-150.0,0.0001536,2]
[399962108,1766946642543,-165.82884527,0.00015361,2]
[399962109,1766946642553,-150.0,0.00015365,2]
[399962110,1766946642563,-150.0,0.00015367,2]
[399962111,1766946642572,-150.0,0.00015367,2]
[399962112,1766946642581,-150.0,0.00015377,2]
[399962113,1766946642590,-150.0,0.00015384,2]
[399962114,1766946642598,-150.0,0.00015385,2]
[399962115,1766946642609,-150.0,0.00015388,2]
[399962116,1766946642618,-150.0,0.00015394,2]
[399962117,1766946642627,-150.0,0.00015396,2]
[399962118,1766946642636,-506.31384754,0.000154,2]
[399962119,1766946642644,-150.0,0.00015401,2]
[399962120,1766946642653,-150.0,0.00015403,2]
[399962121,1766946642662,-150.0,0.00015406,2]
[399962122,1766946642671,-150.0,0.00015409,2]
[399962123,1766946642680,-150.0,0.0001542,2]
[399962124,1766946642689,-150.0,0.00015422,2]
[399962125,1766946642698,-150.0,0.00015423,2]
[399962126,1766946642711,-151.0,0.00015423,2]
[399962127,1766946642720,-151.0,0.00015423,2]
[399962128,1766946642729,-151.0,0.00015427,2]
[399962129,1766946642738,-151.0,0.00015427,2]
[399962130,1766946642747,-150.0,0.00015429,2]
[399962131,1766946642756,-150.0,0.00015432,2]
[399962132,1766946642765,-150.0,0.00015433,2]
[399962133,1766946642774,-150.0,0.00015442,2]
[399962134,1766946642786,-150.0,0.00015446,2]
[399962137,1766946642795,-150.0,0.00015447,2]
[399962139,1766946642804,-151.0,0.00015455,2]
[399962141,1766946642814,-151.0,0.00015456,2]
[399962143,1766946642823,-151.0,0.00015456,2]
[399962145,1766946642832,-151.0,0.00015457,2]
[399962147,1766946642842,-150.0,0.00015458,2]
[399962148,1766946642851,-150.0,0.00015458,2]
[399962149,1766946642860,-150.0,0.00015458,2]
[399962150,1766946642870,-150.0,0.00015461,2]
[399962151,1766946642879,-151.16,0.00015466,2]
[399962152,1766946642888,-150.0,0.00015466,2]
[399962153,1766946642898,-150.0,0.00015468,2]
[399962154,1766946642907,-150.0,0.00015473,2]
[399962155,1766946642915,-178.97322543,0.00015477,2]
[399962156,1766946642924,-150.0,0.00015481,2]
[399962157,1766946642933,-150.0,0.00015482,2]
[399962158,1766946642943,-150.0,0.00015485,2]
[399962159,1766946642952,-17275.20133603,0.00015486,2]
[399962160,1766946642961,-150.0,0.00015488,2]
[399962161,1766946642972,-150.0,0.000155,2]
[399962162,1766946642981,-150.0,0.000155,2]
[399962163,1766946642991,-150.0,0.00015505,2]
[399962164,1766946643001,-150.0,0.00015506,2]